[Event "Titled Tuesday Blitz April 18 Early 2023"]
[White "Simonovic, Miroslav"]
[Black "Gonzalez, Francisco Silva"]
[WhiteFideId "919152"]
[BlackFideId "1512285"]
[WhiteElo "2042"]
[BlackElo "2074"]
[Result "1-0"]
[Round "08"]
[TimeControl "180+2"]
[Date "2023.04.18"]
[WhiteClock "0:00:15"]
[BlackClock "0:00:45"]

1. d4 {[%clk 0:03:00]}  Nf6 {[%clk 0:02:54]} 2. Bg5 {[%clk 0:03:01]}  c5 {[%clk 0:02:53]} 3. Bxf6 {[%clk 0:03:01]}  gxf6 {[%clk 0:02:52]} 4. d5 {[%clk 0:03:01]}  f5 {[%clk 0:02:51]} 5. Nd2 {[%clk 0:02:55]}  Bg7 {[%clk 0:02:51]} 6. c3 {[%clk 0:02:55]}  e6 {[%clk 0:02:49]} 7. d6 {[%clk 0:02:50]}  b5 {[%clk 0:02:47]} 8. e4 {[%clk 0:02:46]}  Qb6 {[%clk 0:02:43]} 9. exf5 {[%clk 0:02:43]}  Qxd6 {[%clk 0:02:42]} 10. fxe6 {[%clk 0:02:40]}  Qxe6+ {[%clk 0:02:36]} 11. Be2 {[%clk 0:02:27]}  Bb7 {[%clk 0:02:36]} 12. Ngf3 {[%clk 0:02:27]}  O-O {[%clk 0:02:31]} 13. O-O {[%clk 0:02:27]}  a6 {[%clk 0:02:30]} 14. Re1 {[%clk 0:02:17]}  d5 {[%clk 0:02:27]} 15. Bxb5 {[%clk 0:02:12]}  Qb6 {[%clk 0:02:28]} 16. Ba4 {[%clk 0:01:41]}  Nc6 {[%clk 0:02:24]} 17. Qc2 {[%clk 0:01:24]}  h6 {[%clk 0:02:14]} 18. Bxc6 {[%clk 0:01:16]}  Qxc6 {[%clk 0:02:12]} 19. Ne5 {[%clk 0:01:16]}  Qd6 {[%clk 0:02:09]} 20. Ndf3 {[%clk 0:01:15]}  Rfe8 {[%clk 0:02:08]} 21. Qf5 {[%clk 0:01:08]}  Re7 {[%clk 0:02:08]} 22. Nd3 {[%clk 0:00:55]}  Rae8 {[%clk 0:02:07]} 23. Rxe7 {[%clk 0:00:53]}  Rxe7 {[%clk 0:02:07]} 24. Re1 {[%clk 0:00:53]}  Re4 {[%clk 0:02:02]} 25. Nd2 {[%clk 0:00:42]}  Re6 {[%clk 0:01:57]} 26. Rxe6 {[%clk 0:00:34]}  fxe6 {[%clk 0:01:57]} 27. Qg6 {[%clk 0:00:32]}  a5 {[%clk 0:01:51]} 28. g3 {[%clk 0:00:27]}  Kf8 {[%clk 0:01:41]} 29. Nf4 {[%clk 0:00:26]}  Bc8 {[%clk 0:01:41]} 30. Nh5 {[%clk 0:00:20]}  Qe5 {[%clk 0:01:39]} 31. Qxg7+ {[%clk 0:00:20]}  Qxg7 {[%clk 0:01:39]} 32. Nxg7 {[%clk 0:00:20]}  Kxg7 {[%clk 0:01:39]} 33. f4 {[%clk 0:00:21]}  a4 {[%clk 0:01:36]} 34. a3 {[%clk 0:00:20]}  Kf6 {[%clk 0:01:34]} 35. Kf2 {[%clk 0:00:20]}  e5 {[%clk 0:01:32]} 36. fxe5+ {[%clk 0:00:19]}  Kxe5 {[%clk 0:01:32]} 37. Nf3+ {[%clk 0:00:20]}  Ke4 {[%clk 0:01:32]} 38. Ne1 {[%clk 0:00:16]}  d4 {[%clk 0:01:27]} 39. Ke2 {[%clk 0:00:15]}  Ba6+ {[%clk 0:01:25]} 40. Kd2 {[%clk 0:00:15]}  Bc4 {[%clk 0:01:20]} 41. cxd4 {[%clk 0:00:14]}  cxd4 {[%clk 0:01:19]} 42. Nc2 {[%clk 0:00:14]}  Bf1 {[%clk 0:01:13]} 43. Nb4 {[%clk 0:00:07]}  Bc4 {[%clk 0:01:12]} 44. Nc6 {[%clk 0:00:07]}  Bd5 {[%clk 0:01:10]} 45. Ne7 {[%clk 0:00:06]}  Be6 {[%clk 0:01:08]} 46. Nc6 {[%clk 0:00:06]}  Bd7 {[%clk 0:01:06]} 47. Nb4 {[%clk 0:00:06]}  Bb5 {[%clk 0:01:03]} 48. Nc2 {[%clk 0:00:04]}  h5 {[%clk 0:01:03]} 49. Ne1 {[%clk 0:00:04]}  Bf1 {[%clk 0:01:00]} 50. Nc2 {[%clk 0:00:03]}  Bc4 {[%clk 0:00:57]} 51. Nb4 {[%clk 0:00:03]}  Bb5 {[%clk 0:00:56]} 52. Nc2 {[%clk 0:00:03]}  Bd7 {[%clk 0:00:54]} 53. Ne1 {[%clk 0:00:04]}  Bf5 {[%clk 0:00:52]} 54. Ng2 {[%clk 0:00:04]}  Bh3 {[%clk 0:00:47]} 55. Nf4 {[%clk 0:00:04]}  h4 {[%clk 0:00:48]} 56. Nxh3 {[%clk 0:00:04]}  hxg3 {[%clk 0:00:48]} 57. hxg3 {[%clk 0:00:05]}  Kf3 {[%clk 0:00:44]} 58. Nf4 {[%clk 0:00:05]}  Kxg3 {[%clk 0:00:43]} 59. Ne6 {[%clk 0:00:06]}  Kf3 {[%clk 0:00:43]} 60. Nxd4+ {[%clk 0:00:06]}  Ke4 {[%clk 0:00:44]} 61. Nb5 {[%clk 0:00:07]}  Kd5 {[%clk 0:00:43]} 62. Nc3+ {[%clk 0:00:08]}  Kc4 {[%clk 0:00:43]} 63. Kc2 {[%clk 0:00:09]}  Kc5 {[%clk 0:00:42]} 64. Nxa4+ {[%clk 0:00:09]}  Kb5 {[%clk 0:00:43]} 65. Nc3+ {[%clk 0:00:10]}  Kc4 {[%clk 0:00:42]} 66. b3+ {[%clk 0:00:10]}  Kd4 {[%clk 0:00:42]} 67. Kb2 {[%clk 0:00:10]}  Kd3 {[%clk 0:00:42]} 68. a4 {[%clk 0:00:11]}  Kd4 {[%clk 0:00:42]} 69. a5 {[%clk 0:00:11]}  Kc5 {[%clk 0:00:43]} 70. Ka3 {[%clk 0:00:12]}  Kc6 {[%clk 0:00:42]} 71. b4 {[%clk 0:00:12]}  Kb7 {[%clk 0:00:43]} 72. Ka4 {[%clk 0:00:13]}  Ka7 {[%clk 0:00:43]} 73. b5 {[%clk 0:00:14]}  Ka8 {[%clk 0:00:43]} 74. Kb4 {[%clk 0:00:14]}  Ka7 {[%clk 0:00:43]} 75. Kc5 {[%clk 0:00:15]}  Kb7 {[%clk 0:00:43]} 76. Nd5 {[%clk 0:00:15]}  Ka7 {[%clk 0:00:44]} 77. a6 {[%clk 0:00:15]}  Ka8 {[%clk 0:00:45]} 78. b6 {[%clk 0:00:16]}  Kb8 {[%clk 0:00:45]} 79. Kc6 {[%clk 0:00:16]}  Kc8 {[%clk 0:00:45]} 80. a7 {[%clk 0:00:15]} 1-0


[Site "https://www.chess.com"]

[Event "Titled Tuesday Blitz April 18 Early 2023"]
[White "Broca Jimenez, Fernando"]
[Black "KorolDimitriy75"]
[WhiteFideId "5104742"]
[WhiteElo "2062"]
[BlackElo "2381"]
[Result "0-1"]
[Round "08"]
[TimeControl "180+2"]
[Date "2023.04.18"]
[WhiteClock "0:01:15"]
[BlackClock "0:00:13"]

1. e4 {[%clk 0:03:00]}  c5 {[%clk 0:02:59]} 2. c3 {[%clk 0:02:59]}  d5 {[%clk 0:02:58]} 3. exd5 {[%clk 0:03:00]}  Qxd5 {[%clk 0:02:59]} 4. d4 {[%clk 0:03:01]}  cxd4 {[%clk 0:03:00]} 5. cxd4 {[%clk 0:03:02]}  Nc6 {[%clk 0:03:00]} 6. Nf3 {[%clk 0:03:03]}  e5 {[%clk 0:03:00]} 7. Be2 {[%clk 0:03:03]}  exd4 {[%clk 0:02:59]} 8. O-O {[%clk 0:03:02]}  Nf6 {[%clk 0:02:58]} 9. Nc3 {[%clk 0:03:02]}  dxc3 {[%clk 0:02:49]} 10. Qc2 {[%clk 0:02:55]}  cxb2 {[%clk 0:02:37]} 11. Bxb2 {[%clk 0:02:54]}  Be7 {[%clk 0:02:33]} 12. Rad1 {[%clk 0:02:54]}  Qa5 {[%clk 0:02:15]} 13. Bc3 {[%clk 0:02:49]}  Qc7 {[%clk 0:02:07]} 14. Be5 {[%clk 0:02:45]}  Qa5 {[%clk 0:01:52]} 15. Bc3 {[%clk 0:02:37]}  Qc5 {[%clk 0:01:32]} 16. Qb2 {[%clk 0:02:27]}  O-O {[%clk 0:01:26]} 17. Rc1 {[%clk 0:02:27]}  Qb6 {[%clk 0:01:07]} 18. Qa1 {[%clk 0:02:25]}  Bg4 {[%clk 0:00:59]} 19. h3 {[%clk 0:02:24]}  Bh5 {[%clk 0:00:59]} 20. Rb1 {[%clk 0:02:20]}  Qc7 {[%clk 0:00:56]} 21. Rfc1 {[%clk 0:02:18]}  Rac8 {[%clk 0:00:49]} 22. Be5 {[%clk 0:02:11]}  Qd7 {[%clk 0:00:46]} 23. Rd1 {[%clk 0:02:09]}  Qe8 {[%clk 0:00:41]} 24. Bc3 {[%clk 0:01:57]}  Ne4 {[%clk 0:00:29]} 25. Be1 {[%clk 0:01:54]}  Bf6 {[%clk 0:00:28]} 26. Rb2 {[%clk 0:01:49]}  Bxf3 {[%clk 0:00:20]} 27. Bxf3 {[%clk 0:01:37]}  Qe5 {[%clk 0:00:20]} 28. Qb1 {[%clk 0:01:28]}  Qxb2 {[%clk 0:00:19]} 29. Qxe4 {[%clk 0:01:28]}  Rfe8 {[%clk 0:00:18]} 30. Qg4 {[%clk 0:01:25]}  Ne5 {[%clk 0:00:18]} 31. Qf5 {[%clk 0:01:25]}  Nxf3+ {[%clk 0:00:18]} 32. Qxf3 {[%clk 0:01:25]}  Qe2 {[%clk 0:00:18]} 33. Qxe2 {[%clk 0:01:23]}  Rxe2 {[%clk 0:00:19]} 34. Bb4 {[%clk 0:01:23]}  g6 {[%clk 0:00:17]} 35. Rd7 {[%clk 0:01:20]}  Rec2 {[%clk 0:00:16]} 36. Rxb7 {[%clk 0:01:18]}  R2c7 {[%clk 0:00:15]} 37. Rb5 {[%clk 0:01:17]}  h5 {[%clk 0:00:14]} 38. a3 {[%clk 0:01:17]}  Bg7 {[%clk 0:00:14]} 39. g3 {[%clk 0:01:17]}  Bf8 {[%clk 0:00:14]} 40. Ba5 {[%clk 0:01:15]}  Rc5 {[%clk 0:00:13]} 0-1


[Site "https://www.chess.com"]

[Event "Titled Tuesday Blitz April 18 Early 2023"]
[White "Ansh M Shah"]
[Black "Antonova, Nadezhda"]
[WhiteFideId "25033379"]
[BlackFideId "14700182"]
[WhiteElo "2084"]
[BlackElo "1765"]
[Result "1-0"]
[Round "08"]
[TimeControl "180+2"]
[Date "2023.04.18"]
[WhiteClock "0:00:11"]
[BlackClock "0:00:04"]

1. d4 {[%clk 0:02:50]}  Nf6 {[%clk 0:02:59]} 2. c4 {[%clk 0:02:51]}  g6 {[%clk 0:02:59]} 3. h4 {[%clk 0:02:51]}  h5 {[%clk 0:02:54]} 4. Nc3 {[%clk 0:02:51]}  d6 {[%clk 0:02:54]} 5. e4 {[%clk 0:02:52]}  Bg7 {[%clk 0:02:54]} 6. Be2 {[%clk 0:02:52]}  O-O {[%clk 0:02:52]} 7. Nf3 {[%clk 0:02:53]}  c5 {[%clk 0:02:53]} 8. d5 {[%clk 0:02:52]}  b5 {[%clk 0:02:50]} 9. cxb5 {[%clk 0:02:52]}  a6 {[%clk 0:02:50]} 10. a4 {[%clk 0:02:52]}  axb5 {[%clk 0:02:48]} 11. Bxb5 {[%clk 0:02:53]}  Ba6 {[%clk 0:02:48]} 12. Bd2 {[%clk 0:02:51]}  Qb6 {[%clk 0:02:38]} 13. O-O {[%clk 0:02:51]}  Nbd7 {[%clk 0:02:27]} 14. Qe2 {[%clk 0:02:45]}  Ng4 {[%clk 0:02:23]} 15. a5 {[%clk 0:02:01]}  Bxb5 {[%clk 0:02:11]} 16. Qxb5 {[%clk 0:01:41]}  Qxb5 {[%clk 0:02:10]} 17. Nxb5 {[%clk 0:01:42]}  Bxb2 {[%clk 0:02:00]} 18. Ra2 {[%clk 0:01:42]}  Bf6 {[%clk 0:01:53]} 19. Rb1 {[%clk 0:01:36]}  Rfb8 {[%clk 0:01:35]} 20. Bg5 {[%clk 0:00:50]}  Bxg5 {[%clk 0:01:12]} 21. hxg5 {[%clk 0:00:51]}  Kf8 {[%clk 0:01:01]} 22. Rbb2 {[%clk 0:00:45]}  Nge5 {[%clk 0:00:58]} 23. Nxe5 {[%clk 0:00:38]}  Nxe5 {[%clk 0:00:59]} 24. a6 {[%clk 0:00:36]}  Nc4 {[%clk 0:00:52]} 25. Rc2 {[%clk 0:00:35]}  Rxb5 {[%clk 0:00:29]} 26. Rxc4 {[%clk 0:00:34]}  Ra7 {[%clk 0:00:27]} 27. f4 {[%clk 0:00:29]}  Rb6 {[%clk 0:00:22]} 28. Rca4 {[%clk 0:00:29]}  f6 {[%clk 0:00:15]} 29. gxf6 {[%clk 0:00:28]}  exf6 {[%clk 0:00:15]} 30. Kf2 {[%clk 0:00:28]}  Ke7 {[%clk 0:00:12]} 31. R2a3 {[%clk 0:00:26]}  Kd7 {[%clk 0:00:10]} 32. Kf3 {[%clk 0:00:26]}  Kc7 {[%clk 0:00:09]} 33. g4 {[%clk 0:00:26]}  hxg4+ {[%clk 0:00:08]} 34. Kxg4 {[%clk 0:00:26]}  Rb1 {[%clk 0:00:09]} 35. f5 {[%clk 0:00:23]}  gxf5+ {[%clk 0:00:09]} 36. Kxf5 {[%clk 0:00:23]}  Rf1+ {[%clk 0:00:09]} 37. Ke6 {[%clk 0:00:24]}  Rf4 {[%clk 0:00:07]} 38. Rh3 {[%clk 0:00:19]}  Kb6 {[%clk 0:00:04]} 39. Kxd6 {[%clk 0:00:14]}  Rxa6 {[%clk 0:00:04]} 40. Rb3+ {[%clk 0:00:10]}  Ka7+ {[%clk 0:00:04]} 41. Rxa6+ {[%clk 0:00:09]}  Kxa6 {[%clk 0:00:04]} 42. Kxc5 {[%clk 0:00:10]}  Rxe4 {[%clk 0:00:05]} 43. d6 {[%clk 0:00:10]}  Re8 {[%clk 0:00:04]} 44. d7 {[%clk 0:00:11]}  Rd8 {[%clk 0:00:04]} 45. Kc6 {[%clk 0:00:11]}  Ka7 {[%clk 0:00:04]} 46. Kc7 {[%clk 0:00:12]}  Rf8 {[%clk 0:00:04]} 47. Ra3# {[%clk 0:00:11]} 1-0


[Site "https://www.chess.com"]

[Event "Titled Tuesday Blitz April 18 Early 2023"]
[White "Tarnowska, Aleksandra"]
[Black "Garrido, Denis"]
[WhiteFideId "1180967"]
[BlackFideId "601217"]
[WhiteElo "1776"]
[BlackElo "2320"]
[Result "1-0"]
[Round "08"]
[TimeControl "180+2"]
[Date "2023.04.18"]
[WhiteClock "0:00:04"]
[BlackClock "0:00:17"]

1. e4 {[%clk 0:02:55]}  e6 {[%clk 0:02:59]} 2. d4 {[%clk 0:02:52]}  d5 {[%clk 0:02:59]} 3. Nd2 {[%clk 0:02:52]}  Be7 {[%clk 0:02:56]} 4. c4 {[%clk 0:02:46]}  dxe4 {[%clk 0:02:45]} 5. Nxe4 {[%clk 0:02:44]}  Nf6 {[%clk 0:02:45]} 6. Ng3 {[%clk 0:02:42]}  O-O {[%clk 0:02:37]} 7. Nf3 {[%clk 0:02:42]}  c5 {[%clk 0:02:36]} 8. Be3 {[%clk 0:02:30]}  cxd4 {[%clk 0:02:34]} 9. Qxd4 {[%clk 0:02:15]}  Bb4+ {[%clk 0:02:28]} 10. Bd2 {[%clk 0:02:12]}  Qa5 {[%clk 0:02:27]} 11. Bxb4 {[%clk 0:02:08]}  Qxb4+ {[%clk 0:02:27]} 12. Qd2 {[%clk 0:02:08]}  Nc6 {[%clk 0:02:21]} 13. Be2 {[%clk 0:01:16]}  Qc5 {[%clk 0:01:56]} 14. O-O {[%clk 0:01:12]}  Rd8 {[%clk 0:01:54]} 15. Qf4 {[%clk 0:00:54]}  e5 {[%clk 0:01:53]} 16. Qh4 {[%clk 0:00:48]}  Nd4 {[%clk 0:01:27]} 17. Nxd4 {[%clk 0:00:36]}  Rxd4 {[%clk 0:01:25]} 18. Qg5 {[%clk 0:00:29]}  h6 {[%clk 0:01:10]} 19. Qe3 {[%clk 0:00:26]}  Be6 {[%clk 0:01:08]} 20. Rad1 {[%clk 0:00:25]}  Rad8 {[%clk 0:00:45]} 21. b3 {[%clk 0:00:19]}  a5 {[%clk 0:00:42]} 22. Bf3 {[%clk 0:00:15]}  Ng4 {[%clk 0:00:36]} 23. Bxg4 {[%clk 0:00:12]}  Bxg4 {[%clk 0:00:36]} 24. f3 {[%clk 0:00:12]}  Be6 {[%clk 0:00:31]} 25. Ne4 {[%clk 0:00:11]}  Qb4 {[%clk 0:00:28]} 26. Rxd4 {[%clk 0:00:05]}  Rxd4 {[%clk 0:00:26]} 27. Nf2 {[%clk 0:00:03]}  f6 {[%clk 0:00:21]} 28. Re1 {[%clk 0:00:02]}  a4 {[%clk 0:00:21]} 29. Ne4 {[%clk 0:00:02]}  axb3 {[%clk 0:00:20]} 30. axb3 {[%clk 0:00:03]}  Kf7 {[%clk 0:00:17]} 31. h3 {[%clk 0:00:03]}  Qxb3 {[%clk 0:00:17]} 32. Qxb3 {[%clk 0:00:03]}  Bxc4 {[%clk 0:00:17]} 33. Qxc4+ {[%clk 0:00:03]}  Rxc4 {[%clk 0:00:17]} 34. Nd6+ {[%clk 0:00:04]} 1-0


[Site "https://www.chess.com"]

[Event "Titled Tuesday Blitz April 18 Early 2023"]
[White "Derichs, Roger"]
[Black "Necula, Iulian"]
[WhiteFideId "4630076"]
[BlackFideId "1232380"]
[WhiteElo "2315"]
[BlackElo "1790"]
[Result "1/2-1/2"]
[Round "08"]
[TimeControl "180+2"]
[Date "2023.04.18"]
[WhiteClock "0:00:33"]
[BlackClock "0:01:35"]

1. d4 {[%clk 0:03:00]}  d6 {[%clk 0:03:00]} 2. c4 {[%clk 0:03:00]}  e5 {[%clk 0:03:01]} 3. d5 {[%clk 0:03:01]}  f5 {[%clk 0:03:00]} 4. e4 {[%clk 0:03:01]}  Nf6 {[%clk 0:02:59]} 5. Nc3 {[%clk 0:03:01]}  f4 {[%clk 0:02:59]} 6. g3 {[%clk 0:02:58]}  Bg4 {[%clk 0:02:56]} 7. f3 {[%clk 0:02:49]}  Bh5 {[%clk 0:02:51]} 8. g4 {[%clk 0:02:46]}  Bg6 {[%clk 0:02:51]} 9. h4 {[%clk 0:02:46]}  Be7 {[%clk 0:02:44]} 10. Qc2 {[%clk 0:02:33]}  O-O {[%clk 0:02:37]} 11. Bd2 {[%clk 0:02:33]}  c6 {[%clk 0:02:36]} 12. O-O-O {[%clk 0:02:30]}  cxd5 {[%clk 0:02:36]} 13. cxd5 {[%clk 0:02:30]}  Nbd7 {[%clk 0:02:34]} 14. Nh3 {[%clk 0:02:14]}  Rc8 {[%clk 0:02:32]} 15. Kb1 {[%clk 0:02:14]}  a6 {[%clk 0:02:32]} 16. Ng5 {[%clk 0:02:11]}  Bf7 {[%clk 0:02:27]} 17. Ne6 {[%clk 0:01:35]}  Bxe6 {[%clk 0:02:26]} 18. dxe6 {[%clk 0:01:36]}  Nc5 {[%clk 0:02:26]} 19. Bc4 {[%clk 0:01:36]}  b5 {[%clk 0:02:25]} 20. Bb3 {[%clk 0:01:37]}  b4 {[%clk 0:02:24]} 21. Nd5 {[%clk 0:01:37]}  Nxb3 {[%clk 0:02:19]} 22. Qxb3 {[%clk 0:01:37]}  Nxd5 {[%clk 0:02:16]} 23. exd5 {[%clk 0:01:30]}  a5 {[%clk 0:02:16]} 24. Rc1 {[%clk 0:01:28]}  Rxc1+ {[%clk 0:02:15]} 25. Bxc1 {[%clk 0:01:25]}  Bxh4 {[%clk 0:02:13]} 26. Qd3 {[%clk 0:01:24]}  g6 {[%clk 0:02:10]} 27. Bd2 {[%clk 0:01:18]}  Bg5 {[%clk 0:02:03]} 28. Rc1 {[%clk 0:01:15]}  Kg7 {[%clk 0:01:54]} 29. b3 {[%clk 0:01:13]}  h5 {[%clk 0:01:52]} 30. gxh5 {[%clk 0:01:07]}  gxh5 {[%clk 0:01:53]} 31. Rh1 {[%clk 0:01:03]}  Kh6 {[%clk 0:01:53]} 32. Be1 {[%clk 0:01:02]}  Qb6 {[%clk 0:01:45]} 33. Qe2 {[%clk 0:00:43]}  Qe3 {[%clk 0:01:44]} 34. Qh2 {[%clk 0:00:36]}  Qxf3 {[%clk 0:01:40]} 35. Bh4 {[%clk 0:00:35]}  Qe4+ {[%clk 0:01:36]} 36. Ka1 {[%clk 0:00:34]}  Qd4+ {[%clk 0:01:35]} 37. Kb1 {[%clk 0:00:34]}  Qe4+ {[%clk 0:01:35]} 38. Ka1 {[%clk 0:00:33]}  Qd4+ {[%clk 0:01:35]} 39. Kb1 {[%clk 0:00:33]}  Qe4+ {[%clk 0:01:35]} 1/2-1/2


[Site "https://www.chess.com"]

[Event "Titled Tuesday Blitz April 18 Early 2023"]
[White "Butolo, Alexandru-Mircea"]
[Black "Makhmudov, Shukhrat"]
[WhiteFideId "1261649"]
[BlackFideId "14200775"]
[WhiteElo "1861"]
[BlackElo "2135"]
[Result "0-1"]
[Round "08"]
[TimeControl "180+2"]
[Date "2023.04.18"]
[WhiteClock "0:01:16"]
[BlackClock "0:00:56"]

1. e4 {[%clk 0:03:00]}  e5 {[%clk 0:02:59]} 2. Nf3 {[%clk 0:03:00]}  Nc6 {[%clk 0:02:59]} 3. d4 {[%clk 0:02:57]}  exd4 {[%clk 0:02:59]} 4. Nxd4 {[%clk 0:02:58]}  Nf6 {[%clk 0:02:59]} 5. Nxc6 {[%clk 0:02:58]}  bxc6 {[%clk 0:03:00]} 6. e5 {[%clk 0:02:58]}  Qe7 {[%clk 0:03:00]} 7. Qe2 {[%clk 0:02:58]}  Nd5 {[%clk 0:03:00]} 8. h4 {[%clk 0:02:57]}  a5 {[%clk 0:02:40]} 9. c4 {[%clk 0:02:44]}  Ba6 {[%clk 0:02:39]} 10. Rh3 {[%clk 0:02:36]}  Nb6 {[%clk 0:02:01]} 11. Nd2 {[%clk 0:02:36]}  a4 {[%clk 0:01:50]} 12. Qe4 {[%clk 0:02:25]}  d5 {[%clk 0:01:29]} 13. exd6 {[%clk 0:02:23]}  Qxe4+ {[%clk 0:01:29]} 14. Nxe4 {[%clk 0:02:23]}  cxd6 {[%clk 0:01:29]} 15. Bf4 {[%clk 0:02:04]}  Bxc4 {[%clk 0:01:22]} 16. Re3 {[%clk 0:01:57]}  O-O-O {[%clk 0:01:19]} 17. Bxc4 {[%clk 0:01:40]}  Nxc4 {[%clk 0:01:19]} 18. Rc3 {[%clk 0:01:41]}  d5 {[%clk 0:01:16]} 19. b3 {[%clk 0:01:25]}  Bb4 {[%clk 0:01:10]} 20. O-O-O {[%clk 0:01:15]}  Bxc3 {[%clk 0:00:57]} 21. Nxc3 {[%clk 0:01:16]}  axb3 {[%clk 0:00:56]} 22. a3 {[%clk 0:01:16]} 0-1


[Site "https://www.chess.com"]

[Event "Titled Tuesday Blitz April 18 Early 2023"]
[White "Shapiro, Viktor"]
[Black "Hartikainen, Jarmo"]
[WhiteFideId "4175700"]
[BlackFideId "503134"]
[WhiteElo "2152"]
[BlackElo "2114"]
[Result "0-1"]
[Round "08"]
[TimeControl "180+2"]
[Date "2023.04.18"]
[WhiteClock "0:01:35"]
[BlackClock "0:00:48"]

1. c4 {[%clk 0:02:35]}  Nf6 {[%clk 0:02:58]} 2. Nc3 {[%clk 0:02:35]}  c5 {[%clk 0:02:56]} 3. Nf3 {[%clk 0:02:35]}  Nc6 {[%clk 0:02:56]} 4. g3 {[%clk 0:02:36]}  g6 {[%clk 0:02:56]} 5. Bg2 {[%clk 0:02:36]}  Bg7 {[%clk 0:02:57]} 6. O-O {[%clk 0:02:37]}  O-O {[%clk 0:02:58]} 7. d3 {[%clk 0:02:37]}  d6 {[%clk 0:02:53]} 8. a3 {[%clk 0:02:38]}  Bg4 {[%clk 0:02:50]} 9. Bd2 {[%clk 0:02:37]}  Qd7 {[%clk 0:02:47]} 10. Rb1 {[%clk 0:02:37]}  a5 {[%clk 0:02:40]} 11. h4 {[%clk 0:02:36]}  Bh3 {[%clk 0:02:39]} 12. Ne1 {[%clk 0:02:35]}  Bxg2 {[%clk 0:02:39]} 13. Kxg2 {[%clk 0:02:35]}  d5 {[%clk 0:02:34]} 14. b3 {[%clk 0:02:29]}  d4 {[%clk 0:02:30]} 15. Nb5 {[%clk 0:02:28]}  e5 {[%clk 0:02:24]} 16. Bg5 {[%clk 0:02:26]}  h6 {[%clk 0:02:15]} 17. Bxf6 {[%clk 0:02:25]}  Bxf6 {[%clk 0:02:16]} 18. Nf3 {[%clk 0:02:23]}  Bg7 {[%clk 0:02:08]} 19. Nd2 {[%clk 0:02:23]}  f5 {[%clk 0:02:06]} 20. h5 {[%clk 0:02:23]}  g5 {[%clk 0:02:02]} 21. g4 {[%clk 0:02:14]}  Rae8 {[%clk 0:01:41]} 22. Rg1 {[%clk 0:02:03]}  e4 {[%clk 0:01:21]} 23. Qc2 {[%clk 0:01:49]}  e3 {[%clk 0:01:17]} 24. fxe3 {[%clk 0:01:39]}  dxe3 {[%clk 0:01:12]} 25. Nf3 {[%clk 0:01:39]}  fxg4 {[%clk 0:01:08]} 26. Nh2 {[%clk 0:01:39]}  Rf2+ {[%clk 0:01:05]} 27. Kh1 {[%clk 0:01:39]}  Nd4 {[%clk 0:01:03]} 28. Nxd4 {[%clk 0:01:38]}  Bxd4 {[%clk 0:00:52]} 29. Nxg4 {[%clk 0:01:35]}  Qc6+ {[%clk 0:00:48]} 0-1


[Site "https://www.chess.com"]

[Event "Titled Tuesday Blitz April 18 Early 2023"]
[White "Fernandez Barrera, Victor"]
[Black "Aanna12"]
[WhiteFideId "2261529"]
[WhiteElo "2211"]
[BlackElo "2192"]
[Result "0-1"]
[Round "08"]
[TimeControl "180+2"]
[Date "2023.04.18"]
[WhiteClock "0:00:22"]
[BlackClock "0:00:11"]

1. g3 {[%clk 0:02:48]}  c5 {[%clk 0:02:56]} 2. b3 {[%clk 0:02:48]}  Nf6 {[%clk 0:02:52]} 3. Bb2 {[%clk 0:02:49]}  d6 {[%clk 0:02:52]} 4. Bg2 {[%clk 0:02:49]}  e5 {[%clk 0:02:47]} 5. e3 {[%clk 0:02:47]}  Nc6 {[%clk 0:02:45]} 6. Ne2 {[%clk 0:02:48]}  Be7 {[%clk 0:02:39]} 7. O-O {[%clk 0:02:47]}  O-O {[%clk 0:02:39]} 8. d4 {[%clk 0:02:45]}  cxd4 {[%clk 0:02:27]} 9. exd4 {[%clk 0:02:40]}  Bf5 {[%clk 0:02:27]} 10. c4 {[%clk 0:02:40]}  Nb4 {[%clk 0:02:21]} 11. Na3 {[%clk 0:02:39]}  Nd3 {[%clk 0:02:20]} 12. Bc3 {[%clk 0:02:38]}  e4 {[%clk 0:02:18]} 13. Nc2 {[%clk 0:02:34]}  d5 {[%clk 0:02:09]} 14. Ne3 {[%clk 0:02:17]}  Bg6 {[%clk 0:02:09]} 15. Qd2 {[%clk 0:01:59]}  h5 {[%clk 0:01:49]} 16. Nxd5 {[%clk 0:01:36]}  Nxd5 {[%clk 0:01:48]} 17. cxd5 {[%clk 0:01:36]}  Qxd5 {[%clk 0:01:48]} 18. Nf4 {[%clk 0:00:56]}  Nxf4 {[%clk 0:01:47]} 19. Qxf4 {[%clk 0:00:56]}  Bd6 {[%clk 0:01:44]} 20. Qe3 {[%clk 0:00:49]}  Rfe8 {[%clk 0:01:43]} 21. Bb2 {[%clk 0:00:42]}  Rac8 {[%clk 0:01:38]} 22. Rac1 {[%clk 0:00:41]}  h4 {[%clk 0:01:31]} 23. Bh3 {[%clk 0:00:38]}  Rxc1 {[%clk 0:01:29]} 24. Rxc1 {[%clk 0:00:35]}  hxg3 {[%clk 0:01:27]} 25. hxg3 {[%clk 0:00:36]}  Qh5 {[%clk 0:01:10]} 26. Bg2 {[%clk 0:00:30]}  Qg4 {[%clk 0:01:03]} 27. d5 {[%clk 0:00:17]}  f5 {[%clk 0:01:01]} 28. Qd4 {[%clk 0:00:16]}  Be5 {[%clk 0:01:00]} 29. Qd2 {[%clk 0:00:17]}  Bxb2 {[%clk 0:00:57]} 30. Qxb2 {[%clk 0:00:18]}  f4 {[%clk 0:00:55]} 31. Rc7 {[%clk 0:00:18]}  Bf7 {[%clk 0:00:52]} 32. d6 {[%clk 0:00:11]}  fxg3 {[%clk 0:00:44]} 33. d7 {[%clk 0:00:11]}  gxf2+ {[%clk 0:00:42]} 34. Qxf2 {[%clk 0:00:11]}  Rd8 {[%clk 0:00:40]} 35. Qd4 {[%clk 0:00:12]}  Be6 {[%clk 0:00:33]} 36. Qxe4 {[%clk 0:00:12]}  Qxe4 {[%clk 0:00:30]} 37. Bxe4 {[%clk 0:00:13]}  Rxd7 {[%clk 0:00:29]} 38. Rxb7 {[%clk 0:00:13]}  Rxb7 {[%clk 0:00:28]} 39. Bxb7 {[%clk 0:00:14]}  Kf7 {[%clk 0:00:26]} 40. Kf2 {[%clk 0:00:14]}  Kf6 {[%clk 0:00:26]} 41. Ke3 {[%clk 0:00:15]}  Ke5 {[%clk 0:00:26]} 42. Bf3 {[%clk 0:00:14]}  g5 {[%clk 0:00:25]} 43. Kd3 {[%clk 0:00:14]}  Kf4 {[%clk 0:00:22]} 44. Bd1 {[%clk 0:00:13]}  g4 {[%clk 0:00:17]} 45. Ke2 {[%clk 0:00:12]}  g3 {[%clk 0:00:13]} 46. Kf1 {[%clk 0:00:12]}  Bd5 {[%clk 0:00:12]} 47. Be2 {[%clk 0:00:12]}  Ke3 {[%clk 0:00:12]} 48. Ba6 {[%clk 0:00:11]}  Kd2 {[%clk 0:00:11]} 49. b4 {[%clk 0:00:10]}  Kc3 {[%clk 0:00:10]} 50. b5 {[%clk 0:00:10]}  Kb4 {[%clk 0:00:07]} 51. Kg1 {[%clk 0:00:10]}  Ka5 {[%clk 0:00:06]} 52. Kf1 {[%clk 0:00:11]}  Kb4 {[%clk 0:00:06]} 53. Kg1 {[%clk 0:00:11]}  Ka3 {[%clk 0:00:06]} 54. Kf1 {[%clk 0:00:11]}  Kxa2 {[%clk 0:00:06]} 55. Kg1 {[%clk 0:00:12]}  Ka3 {[%clk 0:00:06]} 56. Kf1 {[%clk 0:00:13]}  Kb4 {[%clk 0:00:07]} 57. Kg1 {[%clk 0:00:14]}  Ka5 {[%clk 0:00:07]} 58. Kf1 {[%clk 0:00:14]}  Bc4+ {[%clk 0:00:07]} 59. Kg2 {[%clk 0:00:14]}  Bxb5 {[%clk 0:00:07]} 60. Bxb5 {[%clk 0:00:14]}  Kxb5 {[%clk 0:00:07]} 61. Kxg3 {[%clk 0:00:15]}  Kb4 {[%clk 0:00:07]} 62. Kf2 {[%clk 0:00:16]}  Kb3 {[%clk 0:00:07]} 63. Ke1 {[%clk 0:00:17]}  a5 {[%clk 0:00:07]} 64. Kd1 {[%clk 0:00:18]}  Kb2 {[%clk 0:00:08]} 65. Kd2 {[%clk 0:00:18]}  a4 {[%clk 0:00:09]} 66. Kd3 {[%clk 0:00:19]}  a3 {[%clk 0:00:09]} 67. Kc4 {[%clk 0:00:20]}  a2 {[%clk 0:00:10]} 68. Kb4 {[%clk 0:00:21]}  a1=Q {[%clk 0:00:11]} 69. Kc4 {[%clk 0:00:22]}  Qa3 {[%clk 0:00:11]} 0-1


[Site "https://www.chess.com"]